Workbook

Sheet Sheet1
B2: Z180 Serial (ASCI) Baud Rates by Clock Rate
C4: CPU Clock PHI (MHz)
C5: 6.144 | D5: 7.3728 | E5: 9.216 | F5: 12.288 | G5: 14.7456 | H5: 18.432 | I5: 24.576 | J5: 36.864
A6: Z180 ASCI Divisors | B6: 122880 | C6: =(C$5*1000000)/$B6 -> 50 | D6: =(D$5*1000000)/$B6 -> 60 | E6: =(E$5*1000000)/$B6 -> 75 | F6: =(F$5*1000000)/$B6 -> 100 | G6: =(G$5*1000000)/$B6 -> 120 | H6: =(H$5*1000000)/$B6 -> 150 | I6: =(I$5*1000000)/$B6 -> 200 | J6: =(J$5*1000000)/$B6 -> 300 | K6: Serial Port Baud Rate
B7: 61440 | C7: =(C$5*1000000)/$B7 -> 100 | D7: =(D$5*1000000)/$B7 -> 120 | E7: =(E$5*1000000)/$B7 -> 150 | F7: =(F$5*1000000)/$B7 -> 200 | G7: =(G$5*1000000)/$B7 -> 240 | H7: =(H$5*1000000)/$B7 -> 300 | I7: =(I$5*1000000)/$B7 -> 400 | J7: =(J$5*1000000)/$B7 -> 600
B8: 40960 | C8: =(C$5*1000000)/$B8 -> 150 | D8: =(D$5*1000000)/$B8 -> 180 | E8: =(E$5*1000000)/$B8 -> 225 | F8: =(F$5*1000000)/$B8 -> 300 | G8: =(G$5*1000000)/$B8 -> 360 | H8: =(H$5*1000000)/$B8 -> 450 | I8: =(I$5*1000000)/$B8 -> 600 | J8: =(J$5*1000000)/$B8 -> 900
B9: 30720 | C9: =(C$5*1000000)/$B9 -> 200 | D9: =(D$5*1000000)/$B9 -> 240 | E9: =(E$5*1000000)/$B9 -> 300 | F9: =(F$5*1000000)/$B9 -> 400 | G9: =(G$5*1000000)/$B9 -> 480 | H9: =(H$5*1000000)/$B9 -> 600 | I9: =(I$5*1000000)/$B9 -> 800 | J9: =(J$5*1000000)/$B9 -> 1200
B10: 20480 | C10: =(C$5*1000000)/$B10 -> 300 | D10: =(D$5*1000000)/$B10 -> 360 | E10: =(E$5*1000000)/$B10 -> 450 | F10: =(F$5*1000000)/$B10 -> 600 | G10: =(G$5*1000000)/$B10 -> 720 | H10: =(H$5*1000000)/$B10 -> 900 | I10: =(I$5*1000000)/$B10 -> 1200 | J10: =(J$5*1000000)/$B10 -> 1800
B11: 15360 | C11: =(C$5*1000000)/$B11 -> 400 | D11: =(D$5*1000000)/$B11 -> 480 | E11: =(E$5*1000000)/$B11 -> 600 | F11: =(F$5*1000000)/$B11 -> 800 | G11: =(G$5*1000000)/$B11 -> 960 | H11: =(H$5*1000000)/$B11 -> 1200 | I11: =(I$5*1000000)/$B11 -> 1600 | J11: =(J$5*1000000)/$B11 -> 2400
B12: 10240 | C12: =(C$5*1000000)/$B12 -> 600 | D12: =(D$5*1000000)/$B12 -> 720 | E12: =(E$5*1000000)/$B12 -> 900 | F12: =(F$5*1000000)/$B12 -> 1200 | G12: =(G$5*1000000)/$B12 -> 1440 | H12: =(H$5*1000000)/$B12 -> 1800 | I12: =(I$5*1000000)/$B12 -> 2400 | J12: =(J$5*1000000)/$B12 -> 3600
B13: 7680 | C13: =(C$5*1000000)/$B13 -> 800 | D13: =(D$5*1000000)/$B13 -> 960 | E13: =(E$5*1000000)/$B13 -> 1200 | F13: =(F$5*1000000)/$B13 -> 1600 | G13: =(G$5*1000000)/$B13 -> 1920 | H13: =(H$5*1000000)/$B13 -> 2400 | I13: =(I$5*1000000)/$B13 -> 3200 | J13: =(J$5*1000000)/$B13 -> 4800
B14: 5120 | C14: =(C$5*1000000)/$B14 -> 1200 | D14: =(D$5*1000000)/$B14 -> 1440 | E14: =(E$5*1000000)/$B14 -> 1800 | F14: =(F$5*1000000)/$B14 -> 2400 | G14: =(G$5*1000000)/$B14 -> 2880 | H14: =(H$5*1000000)/$B14 -> 3600 | I14: =(I$5*1000000)/$B14 -> 4800 | J14: =(J$5*1000000)/$B14 -> 7200
B15: 3840 | C15: =(C$5*1000000)/$B15 -> 1600 | D15: =(D$5*1000000)/$B15 -> 1920 | E15: =(E$5*1000000)/$B15 -> 2400 | F15: =(F$5*1000000)/$B15 -> 3200 | G15: =(G$5*1000000)/$B15 -> 3840 | H15: =(H$5*1000000)/$B15 -> 4800 | I15: =(I$5*1000000)/$B15 -> 6400 | J15: =(J$5*1000000)/$B15 -> 9600
B16: 2560 | C16: =(C$5*1000000)/$B16 -> 2400 | D16: =(D$5*1000000)/$B16 -> 2880 | E16: =(E$5*1000000)/$B16 -> 3600 | F16: =(F$5*1000000)/$B16 -> 4800 | G16: =(G$5*1000000)/$B16 -> 5760 | H16: =(H$5*1000000)/$B16 -> 7200 | I16: =(I$5*1000000)/$B16 -> 9600 | J16: =(J$5*1000000)/$B16 -> 14400
B17: 1920 | C17: =(C$5*1000000)/$B17 -> 3200 | D17: =(D$5*1000000)/$B17 -> 3840 | E17: =(E$5*1000000)/$B17 -> 4800 | F17: =(F$5*1000000)/$B17 -> 6400 | G17: =(G$5*1000000)/$B17 -> 7680 | H17: =(H$5*1000000)/$B17 -> 9600 | I17: =(I$5*1000000)/$B17 -> 12800 | J17: =(J$5*1000000)/$B17 -> 19200
B18: 1280 | C18: =(C$5*1000000)/$B18 -> 4800 | D18: =(D$5*1000000)/$B18 -> 5760 | E18: =(E$5*1000000)/$B18 -> 7200 | F18: =(F$5*1000000)/$B18 -> 9600 | G18: =(G$5*1000000)/$B18 -> 11520 | H18: =(H$5*1000000)/$B18 -> 14400 | I18: =(I$5*1000000)/$B18 -> 19200 | J18: =(J$5*1000000)/$B18 -> 28800
B19: 960 | C19: =(C$5*1000000)/$B19 -> 6400 | D19: =(D$5*1000000)/$B19 -> 7680 | E19: =(E$5*1000000)/$B19 -> 9600 | F19: =(F$5*1000000)/$B19 -> 12800 | G19: =(G$5*1000000)/$B19 -> 15360 | H19: =(H$5*1000000)/$B19 -> 19200 | I19: =(I$5*1000000)/$B19 -> 25600 | J19: =(J$5*1000000)/$B19 -> 38400
B20: 640 | C20: =(C$5*1000000)/$B20 -> 9600 | D20: =(D$5*1000000)/$B20 -> 11520 | E20: =(E$5*1000000)/$B20 -> 14400 | F20: =(F$5*1000000)/$B20 -> 19200 | G20: =(G$5*1000000)/$B20 -> 23040 | H20: =(H$5*1000000)/$B20 -> 28800 | I20: =(I$5*1000000)/$B20 -> 38400 | J20: =(J$5*1000000)/$B20 -> 57600
B21: 480 | C21: =(C$5*1000000)/$B21 -> 12800 | D21: =(D$5*1000000)/$B21 -> 15360 | E21: =(E$5*1000000)/$B21 -> 19200 | F21: =(F$5*1000000)/$B21 -> 25600 | G21: =(G$5*1000000)/$B21 -> 30720 | H21: =(H$5*1000000)/$B21 -> 38400 | I21: =(I$5*1000000)/$B21 -> 51200 | J21: =(J$5*1000000)/$B21 -> 76800
B22: 320 | C22: =(C$5*1000000)/$B22 -> 19200 | D22: =(D$5*1000000)/$B22 -> 23040 | E22: =(E$5*1000000)/$B22 -> 28800 | F22: =(F$5*1000000)/$B22 -> 38400 | G22: =(G$5*1000000)/$B22 -> 46080 | H22: =(H$5*1000000)/$B22 -> 57600 | I22: =(I$5*1000000)/$B22 -> 76800 | J22: =(J$5*1000000)/$B22 -> 115200
B23: 160 | C23: =(C$5*1000000)/$B23 -> 38400 | D23: =(D$5*1000000)/$B23 -> 46080 | E23: =(E$5*1000000)/$B23 -> 57600 | F23: =(F$5*1000000)/$B23 -> 76800 | G23: =(G$5*1000000)/$B23 -> 92160 | H23: =(H$5*1000000)/$B23 -> 115200 | I23: =(I$5*1000000)/$B23 -> 153600 | J23: =(J$5*1000000)/$B23 -> 230400
B25: ASCI Baud = CPU Clock (PHI) / ASCI Divisor
